[Event "*** Titled Tuesday Blitz"]
[Site "Chess.com"]
[Date "2020.03.03"]
[Round "5"]
[White "freshfoodcompany"]
[Black "hongnhung1234"]
[Result "1-0"]
[WhiteElo "2256"]
[BlackElo "2239"]
[TimeControl "180+1"]
[EndTime "9:52:40 PST"]
[Termination "freshfoodcompany won by checkmate"]

1. d4 {[%clk 0:03:00.9]} 1... f5 {[%clk 0:02:59.9]} 2. Nf3 {[%clk 0:03:00.2]}
2... Nf6 {[%clk 0:02:59.8]} 3. g3 {[%clk 0:03:00.5]} 3... g6 {[%clk 0:03:00.2]}
4. Bg2 {[%clk 0:02:59.9]} 4... Bg7 {[%clk 0:03:00.6]} 5. O-O {[%clk 0:03:00.2]}
5... O-O {[%clk 0:03:01]} 6. b3 {[%clk 0:03:00.5]} 6... d6 {[%clk 0:03:01.3]} 7.
Bb2 {[%clk 0:03:00.7]} 7... Qe8 {[%clk 0:03:01.7]} 8. Nbd2 {[%clk 0:03:00.8]}
8... Nbd7 {[%clk 0:03:00.8]} 9. c4 {[%clk 0:03:01.1]} 9... e5 {[%clk 0:03:00.6]}
10. dxe5 {[%clk 0:02:59.2]} 10... dxe5 {[%clk 0:03:01.5]} 11. Qc2 {[%clk
0:02:57.3]} 11... Kh8 {[%clk 0:02:58.2]} 12. e4 {[%clk 0:02:53.5]} 12... fxe4
{[%clk 0:02:13.4]} 13. Nxe4 {[%clk 0:02:51.9]} 13... Nxe4 {[%clk 0:02:12.3]} 14.
Qxe4 {[%clk 0:02:50.7]} 14... Nc5 {[%clk 0:02:12.6]} 15. Qd5 {[%clk 0:02:39.9]}
15... e4 {[%clk 0:00:56.2]} 16. Bxg7+ {[%clk 0:02:33.8]} 16... Kxg7 {[%clk
0:00:57.1]} 17. Ng5 {[%clk 0:02:12.6]} 17... Rf5 {[%clk 0:00:55.5]} 18. Qd4+
{[%clk 0:01:44.6]} 18... Qe5 {[%clk 0:00:55.5]} 19. Qxe5+ {[%clk 0:01:31.4]}
19... Rxe5 {[%clk 0:00:56.4]} 20. Nh3 {[%clk 0:01:23.7]} 20... Bxh3 {[%clk
0:00:52.7]} 21. Bxh3 {[%clk 0:01:23]} 21... Rae8 {[%clk 0:00:51.4]} 22. Rad1
{[%clk 0:01:14]} 22... R8e7 {[%clk 0:00:42.2]} 23. Rfe1 {[%clk 0:01:05.8]} 23...
a5 {[%clk 0:00:20.1]} 24. Re3 {[%clk 0:00:58.5]} 24... Nd3 {[%clk 0:00:19.9]}
25. Bg2 {[%clk 0:00:55.6]} 25... Nc5 {[%clk 0:00:17.1]} 26. Rde1 {[%clk
0:00:44.4]} 26... a4 {[%clk 0:00:15.9]} 27. b4 {[%clk 0:00:41.1]} 27... Nd3
{[%clk 0:00:15.9]} 28. Rb1 {[%clk 0:00:33.7]} 28... b5 {[%clk 0:00:13.9]} 29.
cxb5 {[%clk 0:00:26.8]} 29... Rxb5 {[%clk 0:00:14.2]} 30. Bxe4 {[%clk
0:00:17.5]} 30... Ne5 {[%clk 0:00:13.7]} 31. Bd3 {[%clk 0:00:15.1]} 31... Rb7
{[%clk 0:00:11.9]} 32. Bf1 {[%clk 0:00:13.6]} 32... Kf6 {[%clk 0:00:11.1]} 33.
Rbe1 {[%clk 0:00:12.2]} 33... Nc6 {[%clk 0:00:10.7]} 34. Rxe7 {[%clk 0:00:11.7]}
34... Nxe7 {[%clk 0:00:11.6]} 35. b5 {[%clk 0:00:11.1]} 35... Rb6 {[%clk
0:00:10]} 36. Re4 {[%clk 0:00:11]} 36... Nd5 {[%clk 0:00:09.6]} 37. Rxa4 {[%clk
0:00:10.8]} 37... Nc3 {[%clk 0:00:09.7]} 38. Ra6 {[%clk 0:00:11.1]} 38... Ke5
{[%clk 0:00:08.5]} 39. Kg2 {[%clk 0:00:09]} 39... Kd4 {[%clk 0:00:08.2]} 40.
Rxb6 {[%clk 0:00:08.6]} 40... cxb6 {[%clk 0:00:09.1]} 41. a3 {[%clk 0:00:07.2]}
41... Kc5 {[%clk 0:00:09]} 42. f4 {[%clk 0:00:06.4]} 42... Nxb5 {[%clk
0:00:08.7]} 43. Bxb5 {[%clk 0:00:06.1]} 43... Kxb5 {[%clk 0:00:09.6]} 44. g4
{[%clk 0:00:06.6]} 44... Ka4 {[%clk 0:00:09.8]} 45. f5 {[%clk 0:00:06.6]} 45...
Kxa3 {[%clk 0:00:10.1]} 46. f6 {[%clk 0:00:06.6]} 46... b5 {[%clk 0:00:10.5]}
47. f7 {[%clk 0:00:07]} 47... b4 {[%clk 0:00:10.9]} 48. f8=Q {[%clk 0:00:07.5]}
48... Kb3 {[%clk 0:00:11]} 49. Qg7 {[%clk 0:00:07]} 49... Ka3 {[%clk 0:00:11]}
50. Qxh7 {[%clk 0:00:07.5]} 50... b3 {[%clk 0:00:11.4]} 51. Qxg6 {[%clk
0:00:08]} 51... b2 {[%clk 0:00:11.6]} 52. Qb1 {[%clk 0:00:08.5]} 52... Kb3
{[%clk 0:00:11.6]} 53. g5 {[%clk 0:00:09.1]} 53... Ka3 {[%clk 0:00:11.8]} 54. g6
{[%clk 0:00:09.6]} 54... Kb3 {[%clk 0:00:12.2]} 55. g7 {[%clk 0:00:10.1]} 55...
Ka3 {[%clk 0:00:13.1]} 56. g8=Q {[%clk 0:00:10.4]} 56... Kb4 {[%clk 0:00:13.7]}
57. Qxb2+ {[%clk 0:00:10.5]} 57... Ka4 {[%clk 0:00:14]} 58. Qgb3+ {[%clk
0:00:10.7]} 58... Ka5 {[%clk 0:00:14]} 59. Qb5# {[%clk 0:00:11.3]} 1-0

[Event "*** Titled Tuesday Blitz"]
[Site "Chess.com"]
[Date "2020.03.03"]
[Round "5"]
[White "Fandorine"]
[Black "Vaathi_Coming"]
[Result "1-0"]
[WhiteElo "2912"]
[BlackElo "2846"]
[TimeControl "180+1"]
[EndTime "9:52:41 PST"]
[Termination "Fandorine won by checkmate"]

1. e4 {[%clk 0:03:00.9]} 1... c6 {[%clk 0:02:59.7]} 2. d4 {[%clk 0:03:00.3]}
2... d5 {[%clk 0:03:00]} 3. e5 {[%clk 0:02:57.6]} 3... c5 {[%clk 0:03:00.1]} 4.
dxc5 {[%clk 0:02:56.1]} 4... e6 {[%clk 0:03:00.1]} 5. a3 {[%clk 0:02:49.8]} 5...
Nc6 {[%clk 0:02:59.2]} 6. Nf3 {[%clk 0:02:41.6]} 6... Bxc5 {[%clk 0:02:58.6]} 7.
Bd3 {[%clk 0:02:41.9]} 7... f6 {[%clk 0:02:53.4]} 8. Qe2 {[%clk 0:02:36.4]} 8...
fxe5 {[%clk 0:02:49.3]} 9. Nxe5 {[%clk 0:02:37.3]} 9... Nf6 {[%clk 0:02:49.5]}
10. O-O {[%clk 0:02:29.4]} 10... O-O {[%clk 0:02:48.8]} 11. Nxc6 {[%clk
0:02:05.5]} 11... bxc6 {[%clk 0:02:49.7]} 12. Nc3 {[%clk 0:01:59.8]} 12... e5
{[%clk 0:02:23.4]} 13. Qxe5 {[%clk 0:01:44.2]} 13... Ng4 {[%clk 0:02:23.1]} 14.
Qh5 {[%clk 0:01:44.7]} 14... g6 {[%clk 0:02:22.9]} 15. Bxg6 {[%clk 0:01:40.8]}
15... hxg6 {[%clk 0:02:23.8]} 16. Qxg6+ {[%clk 0:01:38.2]} 16... Kh8 {[%clk
0:02:24.1]} 17. h3 {[%clk 0:01:26.2]} 17... Qh4 {[%clk 0:01:02.4]} 18. Bg5
{[%clk 0:00:59.8]} 18... Ne5 {[%clk 0:01:00.2]} 19. Bxh4 {[%clk 0:00:50.2]}
19... Nxg6 {[%clk 0:01:00.1]} 20. Bg3 {[%clk 0:00:50.7]} 20... Bf5 {[%clk
0:00:57.1]} 21. Na4 {[%clk 0:00:42.7]} 21... Bd4 {[%clk 0:00:53.2]} 22. c3
{[%clk 0:00:41.5]} 22... Be5 {[%clk 0:00:49.2]} 23. Nc5 {[%clk 0:00:41.6]} 23...
Nf4 {[%clk 0:00:46.5]} 24. Rfe1 {[%clk 0:00:33.4]} 24... Bd6 {[%clk 0:00:46.4]}
25. Nb7 {[%clk 0:00:33.2]} 25... Bb8 {[%clk 0:00:45.4]} 26. Re3 {[%clk
0:00:14.6]} 26... Nd3 {[%clk 0:00:35]} 27. Nd6 {[%clk 0:00:11.6]} 27... Bxd6
{[%clk 0:00:32.4]} 28. Bxd6 {[%clk 0:00:12.5]} 28... Rfe8 {[%clk 0:00:33.1]} 29.
b4 {[%clk 0:00:05.2]} 29... Rxe3 {[%clk 0:00:27.7]} 30. fxe3 {[%clk 0:00:06.1]}
30... Re8 {[%clk 0:00:27]} 31. g4 {[%clk 0:00:05]} 31... Bg6 {[%clk 0:00:25.6]}
32. Bf4 {[%clk 0:00:04.9]} 32... Re4 {[%clk 0:00:21.4]} 33. Rf1 {[%clk
0:00:04.4]} 33... Rc4 {[%clk 0:00:20.6]} 34. Bg5 {[%clk 0:00:03.5]} 34... Kh7
{[%clk 0:00:19.2]} 35. Bf6 {[%clk 0:00:03.7]} 35... c5 {[%clk 0:00:15.1]} 36.
bxc5 {[%clk 0:00:03.7]} 36... Nxc5 {[%clk 0:00:15.4]} 37. Kh2 {[%clk 0:00:04.2]}
37... Ne4 {[%clk 0:00:15.8]} 38. Bd4 {[%clk 0:00:04.6]} 38... a5 {[%clk
0:00:15.9]} 39. h4 {[%clk 0:00:05]} 39... Be8 {[%clk 0:00:13.1]} 40. Rf8 {[%clk
0:00:03.6]} 40... Ba4 {[%clk 0:00:12.4]} 41. h5 {[%clk 0:00:03.9]} 41... Kh6
{[%clk 0:00:12.8]} 42. Kh3 {[%clk 0:00:03.1]} 42... Bd1 {[%clk 0:00:02.1]} 43.
Kh4 {[%clk 0:00:03.6]} 43... Ng5 {[%clk 0:00:02.5]} 44. Rh8+ {[%clk 0:00:04]}
44... Nh7 {[%clk 0:00:02.7]} 45. g5# {[%clk 0:00:04.6]} 1-0

[Event "*** Titled Tuesday Blitz"]
[Site "Chess.com"]
[Date "2020.03.03"]
[Round "5"]
[White "Babas"]
[Black "ZenBull"]
[Result "1/2-1/2"]
[WhiteElo "2378"]
[BlackElo "2146"]
[TimeControl "180+1"]
[EndTime "9:52:52 PST"]
[Termination "Game drawn by repetition"]

1. d4 {[%clk 0:03:00.9]} 1... Nf6 {[%clk 0:02:59.6]} 2. Nf3 {[%clk 0:02:59.8]}
2... e6 {[%clk 0:02:59.3]} 3. c4 {[%clk 0:02:59.4]} 3... d5 {[%clk 0:02:58.1]}
4. cxd5 {[%clk 0:02:58.7]} 4... exd5 {[%clk 0:02:56.8]} 5. Bg5 {[%clk
0:02:59.2]} 5... c6 {[%clk 0:02:55.9]} 6. Qc2 {[%clk 0:02:57.6]} 6... Nbd7
{[%clk 0:02:55.3]} 7. Nc3 {[%clk 0:02:52.9]} 7... Be7 {[%clk 0:02:52.3]} 8. e3
{[%clk 0:02:48.9]} 8... O-O {[%clk 0:02:52]} 9. Bd3 {[%clk 0:02:42.6]} 9... Re8
{[%clk 0:02:52.1]} 10. O-O {[%clk 0:02:41.3]} 10... Nf8 {[%clk 0:02:47.2]} 11.
Ne5 {[%clk 0:02:39.2]} 11... h6 {[%clk 0:02:37.1]} 12. Bh4 {[%clk 0:02:36.2]}
12... N6d7 {[%clk 0:02:33.6]} 13. Bg3 {[%clk 0:02:33.1]} 13... Nxe5 {[%clk
0:02:29]} 14. Bxe5 {[%clk 0:02:34]} 14... Bd6 {[%clk 0:02:26.5]} 15. Bg3 {[%clk
0:02:31.4]} 15... Bxg3 {[%clk 0:02:22.1]} 16. hxg3 {[%clk 0:02:30.8]} 16... Bd7
{[%clk 0:02:15]} 17. b4 {[%clk 0:02:30.3]} 17... Rc8 {[%clk 0:02:10.8]} 18. Qb2
{[%clk 0:02:20.1]} 18... a6 {[%clk 0:02:05.6]} 19. a4 {[%clk 0:02:19.2]} 19...
b5 {[%clk 0:01:59.9]} 20. axb5 {[%clk 0:02:06.1]} 20... axb5 {[%clk 0:01:59.8]}
21. e4 {[%clk 0:01:49.8]} 21... dxe4 {[%clk 0:01:50.3]} 22. Nxe4 {[%clk
0:01:50.7]} 22... Ne6 {[%clk 0:01:46.8]} 23. Nd6 {[%clk 0:01:49.3]} 23... Qe7
{[%clk 0:01:44.8]} 24. Nxc8 {[%clk 0:01:45.7]} 24... Rxc8 {[%clk 0:01:43.2]} 25.
Ra7 {[%clk 0:01:45.8]} 25... Qd6 {[%clk 0:01:42.4]} 26. Rd1 {[%clk 0:01:39.5]}
26... Nc7 {[%clk 0:01:35.7]} 27. Be4 {[%clk 0:01:22.7]} 27... Be6 {[%clk
0:01:35.3]} 28. Qc3 {[%clk 0:01:03.7]} 28... Bd5 {[%clk 0:01:35.2]} 29. Bxd5
{[%clk 0:00:57.1]} 29... Nxd5 {[%clk 0:01:36.1]} 30. Qc5 {[%clk 0:00:57.1]}
30... Qxc5 {[%clk 0:01:19.1]} 31. bxc5 {[%clk 0:00:58]} 31... b4 {[%clk
0:01:12]} 32. Rb7 {[%clk 0:00:57.1]} 32... Re8 {[%clk 0:01:02.1]} 33. Ra1 {[%clk
0:00:50.4]} 33... Re6 {[%clk 0:00:52.8]} 34. Ra8+ {[%clk 0:00:48]} 34... Kh7
{[%clk 0:00:51.7]} 35. Rxf7 {[%clk 0:00:48.3]} 35... Nc3 {[%clk 0:00:45.6]} 36.
Raa7 {[%clk 0:00:41.3]} 36... Rg6 {[%clk 0:00:44.7]} 37. Rab7 {[%clk 0:00:39.2]}
37... Ne2+ {[%clk 0:00:40.2]} 38. Kh2 {[%clk 0:00:35.3]} 38... Rg5 {[%clk
0:00:32.9]} 39. g4 {[%clk 0:00:29]} 39... Rxg4 {[%clk 0:00:31.7]} 40. g3 {[%clk
0:00:27]} 40... Nxd4 {[%clk 0:00:29.8]} 41. Rf4 {[%clk 0:00:17.9]} 41... Rxf4
{[%clk 0:00:25.7]} 42. gxf4 {[%clk 0:00:18.8]} 42... Ne6 {[%clk 0:00:24.1]} 43.
Rxb4 {[%clk 0:00:17.9]} 43... Nxc5 {[%clk 0:00:23.4]} 44. Rc4 {[%clk 0:00:17.4]}
44... Ne6 {[%clk 0:00:23.3]} 45. Rxc6 {[%clk 0:00:11.4]} 45... Nxf4 {[%clk
0:00:22.9]} 46. Kg3 {[%clk 0:00:11.9]} 46... Ng6 {[%clk 0:00:22.6]} 47. f4
{[%clk 0:00:11.2]} 47... Ne7 {[%clk 0:00:21.5]} 48. Rc7 {[%clk 0:00:10.6]} 48...
Nf5+ {[%clk 0:00:20.6]} 49. Kg4 {[%clk 0:00:11]} 49... Ne3+ {[%clk 0:00:20.4]}
50. Kf3 {[%clk 0:00:11.4]} 50... Nf5 {[%clk 0:00:20.3]} 51. Ke4 {[%clk
0:00:09.8]} 51... Nd6+ {[%clk 0:00:19.4]} 52. Ke5 {[%clk 0:00:08.9]} 52... Ne8
{[%clk 0:00:19.3]} 53. Rf7 {[%clk 0:00:04.8]} 53... Nf6 {[%clk 0:00:17.5]} 54.
Rxf6 {[%clk 0:00:04.5]} 54... gxf6+ {[%clk 0:00:17.6]} 55. Kxf6 {[%clk
0:00:05.4]} 55... h5 {[%clk 0:00:16.8]} 56. Kg5 {[%clk 0:00:04.7]} 56... h4
{[%clk 0:00:16.5]} 57. Kxh4 {[%clk 0:00:04.8]} 57... Kg6 {[%clk 0:00:16.8]} 58.
Kg4 {[%clk 0:00:05.7]} 58... Kf6 {[%clk 0:00:17]} 59. f5 {[%clk 0:00:06.6]}
59... Kf7 {[%clk 0:00:17.2]} 60. Kg5 {[%clk 0:00:07.5]} 60... Kg7 {[%clk
0:00:17.5]} 61. f6+ {[%clk 0:00:08.4]} 61... Kf7 {[%clk 0:00:18]} 62. Kf5 {[%clk
0:00:08.8]} 62... Kf8 {[%clk 0:00:18.2]} 63. Kg6 {[%clk 0:00:09.7]} 63... Kg8
{[%clk 0:00:18.3]} 64. Kg5 {[%clk 0:00:10.6]} 64... Kf7 {[%clk 0:00:18.4]} 65.
Kf5 {[%clk 0:00:11.1]} 65... Kf8 {[%clk 0:00:18.7]} 66. Ke5 {[%clk 0:00:12]}
66... Kf7 {[%clk 0:00:19]} 67. Kf5 {[%clk 0:00:12.4]} 1/2-1/2

[Event "*** Titled Tuesday Blitz"]
[Site "Chess.com"]
[Date "2020.03.03"]
[Round "5"]
[White "Philosopherrr"]
[Black "Aygehovit1992"]
[Result "1-0"]
[WhiteElo "2403"]
[BlackElo "2618"]
[TimeControl "180+1"]
[EndTime "9:52:59 PST"]
[Termination "Philosopherrr won on time"]

1. e4 {[%clk 0:03:00.9]} 1... c5 {[%clk 0:02:59.1]} 2. Nf3 {[%clk 0:02:47.8]}
2... d6 {[%clk 0:02:56.8]} 3. Bb5+ {[%clk 0:02:37.4]} 3... Nd7 {[%clk
0:02:54.1]} 4. Ba4 {[%clk 0:02:37]} 4... e5 {[%clk 0:02:53]} 5. c3 {[%clk
0:02:34.3]} 5... Nf6 {[%clk 0:02:52.9]} 6. Qe2 {[%clk 0:02:32]} 6... Be7 {[%clk
0:02:50.8]} 7. O-O {[%clk 0:02:32.3]} 7... O-O {[%clk 0:02:50.3]} 8. d4 {[%clk
0:02:32.9]} 8... cxd4 {[%clk 0:02:48.1]} 9. cxd4 {[%clk 0:02:33.1]} 9... exd4
{[%clk 0:02:47.2]} 10. Nxd4 {[%clk 0:02:32.8]} 10... Nc5 {[%clk 0:02:47.7]} 11.
Bc2 {[%clk 0:02:32.6]} 11... Re8 {[%clk 0:02:47]} 12. Nc3 {[%clk 0:02:32.8]}
12... Bf8 {[%clk 0:02:46.6]} 13. Qf3 {[%clk 0:02:32.6]} 13... Bg4 {[%clk
0:02:22.5]} 14. Qg3 {[%clk 0:02:32.5]} 14... Bd7 {[%clk 0:02:23]} 15. Bg5 {[%clk
0:02:31.2]} 15... h6 {[%clk 0:02:22.3]} 16. Bxh6 {[%clk 0:02:19]} 16... Nfxe4
{[%clk 0:02:20]} 17. Nxe4 {[%clk 0:02:16.9]} 17... Nxe4 {[%clk 0:02:20.9]} 18.
Qf3 {[%clk 0:02:10.6]} 18... gxh6 {[%clk 0:01:53.9]} 19. Bxe4 {[%clk 0:02:09.6]}
19... Qh4 {[%clk 0:01:53.5]} 20. Rfe1 {[%clk 0:02:07.3]} 20... Bg7 {[%clk
0:01:31.6]} 21. Nf5 {[%clk 0:01:51.1]} 21... Bxf5 {[%clk 0:01:31.1]} 22. Qxf5
{[%clk 0:01:51.3]} 22... Re7 {[%clk 0:01:27.2]} 23. Bd5 {[%clk 0:01:49.3]} 23...
Rf8 {[%clk 0:00:56.2]} 24. g3 {[%clk 0:01:46.7]} 24... Rxe1+ {[%clk 0:00:50.5]}
25. Rxe1 {[%clk 0:01:45.9]} 25... Qd8 {[%clk 0:00:50.3]} 26. b3 {[%clk
0:01:40.2]} 26... b6 {[%clk 0:00:48.2]} 27. h4 {[%clk 0:01:39.8]} 27... Qf6
{[%clk 0:00:45.1]} 28. Qd7 {[%clk 0:01:31.6]} 28... Qd4 {[%clk 0:00:41.3]} 29.
Bf3 {[%clk 0:01:25.9]} 29... a5 {[%clk 0:00:38.9]} 30. Kg2 {[%clk 0:01:25.8]}
30... Qb2 {[%clk 0:00:25]} 31. Qxd6 {[%clk 0:01:21.3]} 31... Qxa2 {[%clk
0:00:25.2]} 32. Qxb6 {[%clk 0:01:21.3]} 32... Qb2 {[%clk 0:00:22.6]} 33. Bd5
{[%clk 0:01:18.2]} 33... a4 {[%clk 0:00:13.9]} 34. Qb5 {[%clk 0:01:03.2]} 34...
a3 {[%clk 0:00:13.5]} 35. Re2 {[%clk 0:01:03.7]} 35... Qd4 {[%clk 0:00:12.1]}
36. Bc4 {[%clk 0:01:00]} 36... Qa7 {[%clk 0:00:09.7]} 37. Qa4 {[%clk 0:00:56.5]}
37... Qxa4 {[%clk 0:00:08.1]} 38. bxa4 {[%clk 0:00:56.7]} 38... Rc8 {[%clk
0:00:08.6]} 39. Ba2 {[%clk 0:00:55.4]} 39... Ra8 {[%clk 0:00:06.8]} 40. Bb3
{[%clk 0:00:54.4]} 40... Rb8 {[%clk 0:00:06.3]} 41. Ba2 {[%clk 0:00:53.2]} 41...
Rb4 {[%clk 0:00:05.9]} 42. Re8+ {[%clk 0:00:52]} 42... Kh7 {[%clk 0:00:05.7]}
43. Bxf7 {[%clk 0:00:52.1]} 43... Rxa4 {[%clk 0:00:06]} 44. h5 {[%clk
0:00:52.5]} 44... Bd4 {[%clk 0:00:05.4]} 45. Re4 {[%clk 0:00:49.3]} 45... Kg7
{[%clk 0:00:04.2]} 46. Bb3 {[%clk 0:00:48.6]} 46... Rb4 {[%clk 0:00:04.1]} 47.
Ba2 {[%clk 0:00:48.4]} 47... Kf6 {[%clk 0:00:04.5]} 48. f4 {[%clk 0:00:46.5]}
48... Rb2+ {[%clk 0:00:03.8]} 49. Kf3 {[%clk 0:00:46.7]} 49... Bc3 {[%clk
0:00:01.4]} 50. Re6+ {[%clk 0:00:45.3]} 50... Kg7 {[%clk 0:00:01.6]} 51. Rc6
{[%clk 0:00:42.6]} 51... Rxa2 {[%clk 0:00:01.1]} 52. Rxc3 {[%clk 0:00:42.3]}
52... Ra1 {[%clk 0:00:02]} 53. Kg4 {[%clk 0:00:41.8]} 53... a2 {[%clk
0:00:02.4]} 54. Ra3 {[%clk 0:00:41.6]} 54... Kf6 {[%clk 0:00:02.3]} 55. Ra6+
{[%clk 0:00:40.9]} 55... Kf7 {[%clk 0:00:02.5]} 56. Kf5 {[%clk 0:00:40.8]} 56...
Ke7 {[%clk 0:00:03]} 57. g4 {[%clk 0:00:40.4]} 57... Kd7 {[%clk 0:00:03.4]} 58.
Ra3 {[%clk 0:00:37.5]} 58... Kd6 {[%clk 0:00:03.1]} 59. Ra4 {[%clk 0:00:37.7]}
59... Kc5 {[%clk 0:00:03.2]} 60. Kf6 {[%clk 0:00:37.8]} 60... Kb5 {[%clk
0:00:03.6]} 61. Ra8 {[%clk 0:00:37.5]} 61... Kb4 {[%clk 0:00:03.8]} 62. f5
{[%clk 0:00:37.3]} 62... Kb3 {[%clk 0:00:03.6]} 63. Kg6 {[%clk 0:00:36.6]} 63...
Rg1 {[%clk 0:00:03.6]} 64. Rb8+ {[%clk 0:00:36.1]} 64... Kc3 {[%clk 0:00:02.3]}
65. Ra8 {[%clk 0:00:35.5]} 65... Rxg4+ {[%clk 0:00:01.6]} 66. Kxh6 {[%clk
0:00:35.5]} 66... Kb3 {[%clk 0:00:02.5]} 67. f6 {[%clk 0:00:35.1]} 67... Rf4
{[%clk 0:00:01.7]} 68. Kg5 {[%clk 0:00:34]} 1-0

[Event "*** Titled Tuesday Blitz"]
[Site "Chess.com"]
[Date "2020.03.03"]
[Round "5"]
[White "Eliclax"]
[Black "almaguerjm"]
[Result "1-0"]
[WhiteElo "1909"]
[BlackElo "2318"]
[TimeControl "180+1"]
[EndTime "9:53:00 PST"]
[Termination "Eliclax won by resignation"]

1. d4 {[%clk 0:03:00.9]} 1... d5 {[%clk 0:02:59]} 2. c4 {[%clk 0:03:01]} 2...
Nf6 {[%clk 0:02:58]} 3. Nc3 {[%clk 0:03:01.2]} 3... g6 {[%clk 0:02:55.6]} 4. Bf4
{[%clk 0:03:01.3]} 4... Bg7 {[%clk 0:02:55.3]} 5. e3 {[%clk 0:03:01.7]} 5... O-O
{[%clk 0:02:55.4]} 6. Nf3 {[%clk 0:03:01.9]} 6... a6 {[%clk 0:02:55.5]} 7. a4
{[%clk 0:03:00]} 7... b6 {[%clk 0:02:53.7]} 8. Bd3 {[%clk 0:02:58.7]} 8... Bb7
{[%clk 0:02:54.1]} 9. O-O {[%clk 0:02:58.1]} 9... Nbd7 {[%clk 0:02:53.4]} 10.
Rc1 {[%clk 0:02:53.5]} 10... Rc8 {[%clk 0:02:52.8]} 11. cxd5 {[%clk 0:02:49.4]}
11... Nxd5 {[%clk 0:02:52.3]} 12. Nxd5 {[%clk 0:02:49.7]} 12... Bxd5 {[%clk
0:02:52.4]} 13. Bxa6 {[%clk 0:02:50.3]} 13... e5 {[%clk 0:02:47.4]} 14. dxe5
{[%clk 0:02:45.4]} 14... Bxf3 {[%clk 0:02:44.2]} 15. Qxf3 {[%clk 0:02:45.3]}
15... Ra8 {[%clk 0:02:43.3]} 16. Bb5 {[%clk 0:02:41.3]} 16... Nxe5 {[%clk
0:02:41.7]} 17. Bxe5 {[%clk 0:02:37.7]} 17... Bxe5 {[%clk 0:02:42.6]} 18. Rfd1
{[%clk 0:02:36.3]} 18... Qh4 {[%clk 0:02:32.7]} 19. g3 {[%clk 0:02:33.4]} 19...
Qb4 {[%clk 0:02:31.1]} 20. Rc2 {[%clk 0:02:20.6]} 20... Rad8 {[%clk 0:02:30.2]}
21. Kg2 {[%clk 0:02:08.8]} 21... Rxd1 {[%clk 0:01:57.9]} 22. Qxd1 {[%clk
0:02:08.1]} 22... Bd6 {[%clk 0:01:54.4]} 23. Qd5 {[%clk 0:02:00.8]} 23... h5
{[%clk 0:01:50.7]} 24. b3 {[%clk 0:01:56.7]} 24... Kg7 {[%clk 0:01:48.4]} 25.
Bc4 {[%clk 0:01:56.1]} 25... Qa3 {[%clk 0:01:41.5]} 26. Qd4+ {[%clk 0:01:49.3]}
26... Kh7 {[%clk 0:01:39.4]} 27. Rd2 {[%clk 0:01:37.9]} 27... Qc5 {[%clk
0:01:35.8]} 28. Qf6 {[%clk 0:01:33.5]} 28... Be7 {[%clk 0:01:33.9]} 29. Qf4
{[%clk 0:01:26.4]} 29... Bg5 {[%clk 0:01:28.5]} 30. Qe4 {[%clk 0:01:20.1]} 30...
Kg7 {[%clk 0:01:23.8]} 31. Rd7 {[%clk 0:01:16.2]} 31... Bf6 {[%clk 0:01:10.3]}
32. Qf4 {[%clk 0:01:09.4]} 32... c6 {[%clk 0:01:02.7]} 33. Qf3 {[%clk
0:00:47.5]} 33... b5 {[%clk 0:01:01.5]} 34. axb5 {[%clk 0:00:46.7]} 34... cxb5
{[%clk 0:01:02.1]} 35. Rd5 {[%clk 0:00:47]} 35... Qa3 {[%clk 0:00:55.2]} 36.
Rxb5 {[%clk 0:00:46.8]} 36... Qb2 {[%clk 0:00:47.9]} 37. Rb7 {[%clk 0:00:45.3]}
37... Qc2 {[%clk 0:00:47.1]} 38. Qd5 {[%clk 0:00:44.2]} 38... Kh6 {[%clk
0:00:39.3]} 39. Rxf7 {[%clk 0:00:43.4]} 39... Rxf7 {[%clk 0:00:39.8]} 40. Qxf7
{[%clk 0:00:40.7]} 40... Qe4+ {[%clk 0:00:40]} 41. Kg1 {[%clk 0:00:37.5]} 41...
Qb1+ {[%clk 0:00:39.5]} 42. Bf1 {[%clk 0:00:37.2]} 42... Qb2 {[%clk 0:00:35.5]}
43. Qf8+ {[%clk 0:00:36.4]} 43... Bg7 {[%clk 0:00:35.9]} 44. Qf4+ {[%clk
0:00:36.3]} 44... Kh7 {[%clk 0:00:36.5]} 45. Qc4 {[%clk 0:00:35.1]} 45... Bf8
{[%clk 0:00:35.3]} 46. Qf7+ {[%clk 0:00:34.4]} 46... Bg7 {[%clk 0:00:35.6]} 47.
Qe7 {[%clk 0:00:32.2]} 47... Kh6 {[%clk 0:00:33.9]} 48. b4 {[%clk 0:00:30.5]}
48... Bf6 {[%clk 0:00:33]} 49. Qc5 {[%clk 0:00:28.6]} 49... h4 {[%clk
0:00:32.1]} 50. b5 {[%clk 0:00:27.5]} 50... hxg3 {[%clk 0:00:32]} 51. hxg3
{[%clk 0:00:27.3]} 51... Qb1 {[%clk 0:00:21.1]} 52. b6 {[%clk 0:00:25.5]} 52...
Bd8 {[%clk 0:00:18.3]} 53. Qf8+ {[%clk 0:00:22.4]} 53... Kh5 {[%clk 0:00:17.6]}
54. Qxd8 {[%clk 0:00:22.3]} 54... g5 {[%clk 0:00:17.7]} 55. Qh8+ {[%clk
0:00:21.7]} 55... Kg4 {[%clk 0:00:17.4]} 56. Qc8+ {[%clk 0:00:19.9]} 56... Kf3
{[%clk 0:00:17.1]} 57. Qc6+ {[%clk 0:00:19.6]} 57... Kg4 {[%clk 0:00:17.6]} 58.
Qe6+ {[%clk 0:00:18.1]} 58... Kh5 {[%clk 0:00:17.7]} 59. Qh3+ {[%clk 0:00:16.7]}
59... Kg6 {[%clk 0:00:18.1]} 60. Kh2 {[%clk 0:00:14.8]} 60... Qxb6 {[%clk
0:00:18.2]} 61. Bd3+ {[%clk 0:00:14.9]} 61... Kg7 {[%clk 0:00:16.3]} 62. Qh7+
{[%clk 0:00:14.6]} 62... Kf8 {[%clk 0:00:16.8]} 63. Qh8+ {[%clk 0:00:14.5]}
63... Ke7 {[%clk 0:00:17.3]} 64. Qg7+ {[%clk 0:00:14.8]} 64... Kd8 {[%clk
0:00:17.7]} 65. Qxg5+ {[%clk 0:00:14.9]} 65... Kc7 {[%clk 0:00:18.2]} 66. Qe7+
{[%clk 0:00:14.6]} 66... Kb8 {[%clk 0:00:18.6]} 67. Be4 {[%clk 0:00:14]} 67...
Qh6+ {[%clk 0:00:18.2]} 68. Kg2 {[%clk 0:00:14]} 68... Qb6 {[%clk 0:00:18.3]}
69. Qe5+ {[%clk 0:00:13.7]} 69... Ka7 {[%clk 0:00:18.3]} 70. Qd4 {[%clk
0:00:13.4]} 1-0